[Event "Budapest Spring Festival 2019"]
[Site "Budapest"]
[Date "2019.04.17"]
[Round "9.27"]
[White "Rudolf, Michal"]
[Black "Turzo, Attila"]
[Result "1-0"]
[ECO "C50"]
[WhiteElo "2337"]
[BlackElo "2296"]
[Annotator "NA RC"]
[PlyCount "153"]
[EventDate "2019.04.09"]
[EventType "swiss"]
[EventCountry "HUN"]
[SourceTitle "playchess.com"]
[Source "ChessBase"]
[SourceQuality "1"]
[TimeControl "40/5400+30:1800+30"]

1. e4 {[%emt 0:00:06]} e5 {[%emt 0:00:32]} 2. Nf3 {[%emt 0:00:06]} Nc6 {[%emt 0:00:16]} 3. Bc4 {[%emt 0:00:09]} Bc5 {[%emt 0:00:16]} 4. O-O {[%emt 0:00:29]} Nf6 {[%emt 0:00:17]} 5. d3 {[%emt 0:00:08]} d6 {[%emt 0:00:19]} 6. c3 {[%emt 0:00:06]} O-O {[%emt 0:01:00]} 7. h3 {[%emt 0:00:17]} a5 {[%emt 0:00:20] C54: Giuoco Piano: 4 c3 Nf6, main lines with 5 d4 and 5 d3} 8. Bb5 $146 {[%emt 0:04:43]} ({Predecessor:} 8. Re1 h6 9. Bb3 Be6 10. Ba4 Ba7 11. d4 Bd7 12. Bc2 exd4 13. cxd4 Nb4 14. Nc3 Nxc2 15. Qxc2 {½-½ (38) So,W (2780)-Nakamura,H (2777) chess.com INT 2018}) 8... Ne7 {[%emt 0:07:37]} 9. d4 {[%emt 0:08:27]} Ba7 {[%emt 0:04:49]} 10. Re1 {[%emt 0:00:22]} Ng6 {[%emt 0:00:12]} 11. Nbd2 {[%emt 0:01:22]} Bd7 {[%emt 0:05:06]} 12. Bd3 {[%emt 0:06:29]} a4 {[%emt 0:04:08]} 13. Nf1 {[%emt 0:00:57]} b5 {[%emt 0:03:30]} 14. Ng3 {[%emt 0:05:51]} c5 {[%emt 0:05:28]} 15. dxe5 {[%emt 0:10:58]} dxe5 {[%emt 0:02:10]} 16. c4 {[%emt 0:01:02]} b4 {[%emt 0:02:47]} 17. Bc2 {[%emt 0:01:07]} Bb8 {[%emt 0:03:50]} 18. Bg5 {[%emt 0:02:59]} Be6 {[%emt 0:08:05]} 19. Bxa4 {[%emt 0:02:20]} Bxc4 {[%emt 0:06:20]} 20. b3 {[%emt 0:02:43]} Qxd1 {[%emt 0:02:25]} 21. Rexd1 {[%emt 0:00:56]} Be6 {[%emt 0:00:26]} 22. Be3 {[%emt 0:04:43]} Rc8 {[%emt 0:04:27]} 23. Bb5 {[%emt 0:06:59]} h6 {[%emt 0:05:26]} 24. Nd2 {[%emt 0:05:26]} Ba7 {[%emt 0:06:01]} 25. a4 {[%emt 0:03:16]} bxa3 {[%emt 0:04:29]} 26. Rxa3 {[%emt 0:00:23]} Rab8 {[%emt 0:01:27]} 27. Bc4 {[%emt 0:01:53]} Bxc4 {[%emt 0:00:53]} 28. Nxc4 {[%emt 0:00:08]} Bb6 {[%emt 0:00:19]} 29. f3 {[%emt 0:02:28]} Bd8 {[%emt 0:04:46]} 30. Nf5 {[%emt 0:02:23]} Kf8 {[%emt 0:04:39]} 31. Ncd6 {[%emt 0:04:02]} Rc6 {[%emt 0:02:56]} 32. Ra7 {[%emt 0:04:19]} Bc7 {[%emt 0:03:50]} 33. Nc4 {[%emt 0:01:30]} Nf4 {[%emt 0:04:20]} 34. Bxf4 {[%emt 0:03:46]} exf4 {[%emt 0:00:02]} 35. e5 {[%emt 0:00:20]} Ne8 {[%emt 0:00:21]} 36. Rd7 {[%emt 0:01:46]} Rxb3 {[%emt 0:00:49]} 37. Ncd6 {[%emt 0:00:34]} Bxd6 {[%emt 0:01:53]} 38. Nxd6 $18 {[%emt 0:00:52]} (38. exd6 Rb1+ 39. Kh2) 38... Nxd6 {[%emt 0:00:45]} 39. exd6 {[%emt 0:00:09]} Kg8 {[%emt 0:01:39]} 40. Rxf7 {[%emt 0:00:00]} Rxd6 {[%emt 0:00:00]} 41. Rxg7+ {[%emt 0:04:09]} Kh8 {[%emt 0:01:38]} 42. Rh7+ {[%emt 0:01:10]} Kg8 {[%emt 0:00:17]} 43. Rhc7 {[%emt 0:00:16]} Rb1+ {[%emt 0:01:08]} 44. Kh2 {[%emt 0:00:04]} Rf6 {[%emt 0:03:13]} 45. Rxc5 {[%emt 0:00:45]} Rb8 {[%emt 0:00:27]} 46. Rcc7 {[%emt 0:00:27]} Rg6 {[%emt 0:06:23]} 47. h4 {[%emt 0:00:22]} Rd8 {[%emt 0:05:34]} 48. Ra5 {[%emt 0:02:22]} Re8 {[%emt 0:03:53]} 49. h5 {[%emt 0:00:56]} Rf6 {[%emt 0:00:57]} 50. Kh3 {[%emt 0:00:38]} Kh8 {[%emt 0:00:18]} 51. Raa7 {[%emt 0:00:29]} Rd8 {[%emt 0:03:03]} 52. Rh7+ {[%emt 0:03:31]} Kg8 {[%emt 0:00:17]} 53. Rag7+ {[%emt 0:01:58]} Kf8 {[%emt 0:00:01]} 54. Rg6 {[%emt 0:00:14]} Rxg6 {[%emt 0:00:51]} 55. hxg6 {[%emt 0:00:04]} Rd6 {[%emt 0:08:23]} 56. Rxh6 {[%emt 0:00:22]} Kg7 {[%emt 0:00:02]} 57. Rh4 {[%emt 0:00:32]} Rf6 {[%emt 0:00:08]} 58. Rg4 {[%emt 0:00:09]} Rf5 {[%emt 0:00:20]} 59. Kh2 {[%emt 0:01:49]} Rf6 {[%emt 0:00:20]} 60. Kg1 {[%emt 0:00:04]} Rxg6 {[%emt 0:00:49]} 61. Rxf4 {[%emt 0:00:08]} Ra6 {[%emt 0:00:11]} 62. Kf2 {[%emt 0:00:16]} Kg6 {[%emt 0:00:08]} 63. Rb4 {[%emt 0:00:17]} Kg5 {[%emt 0:00:07]} 64. Rb5+ {[%emt 0:00:06]} Kg6 {[%emt 0:00:08]} 65. g4 {[%emt 0:00:11]} Kf6 {[%emt 0:00:07]} 66. Kg3 {[%emt 0:00:05]} Kg6 {[%emt 0:00:05]} 67. f4 {[%emt 0:00:07]} Kf6 {[%emt 0:00:15]} 68. Kh4 {[%emt 0:00:09]} Kg6 {[%emt 0:00:11]} 69. f5+ {[%emt 0:00:12]} Kh6 {[%emt 0:00:08]} 70. g5+ {[%emt 0:00:09]} Kg7 {[%emt 0:00:07]} 71. Rb7+ {[%emt 0:00:05]} Kg8 {[%emt 0:00:08]} 72. Kh5 {[%emt 0:00:04]} Ra1 {[%emt 0:00:09]} 73. Kg6 {[%emt 0:00:05]} Ra8 {[%emt 0:00:11]} 74. f6 {[%emt 0:00:05]} Rf8 {[%emt 0:00:19]} 75. Rg7+ {[%emt 0:00:07]} Kh8 {[%emt 0:00:08]} 76. Rh7+ {[%emt 0:00:03]} Kg8 {[%emt 0:00:04]} 77. f7+ {[%emt 0:00:04]} 1-0

[Event "Budapest Spring Festival 2019"]
[Site "Budapest"]
[Date "2019.04.17"]
[Round "9.28"]
[White "Bashirli, Nail"]
[Black "Pratyusha, Bodda"]
[Result "1-0"]
[ECO "C49"]
[WhiteElo "2333"]
[BlackElo "2277"]
[Annotator "NA RC"]
[PlyCount "77"]
[EventDate "2019.04.09"]
[EventType "swiss"]
[EventCountry "HUN"]
[SourceTitle "playchess.com"]
[Source "ChessBase"]
[SourceQuality "1"]
[TimeControl "40/5400+30:1800+30"]

1. e4 {[%emt 0:01:58]} e5 {[%emt 0:00:28]} 2. Nf3 {[%emt 0:00:14]} Nc6 3. Nc3 {[%emt 0:00:18]} Nf6 {[%emt 0:00:24]} 4. Bb5 {[%emt 0:00:03]} Bb4 {[%emt 0:01:01]} 5. O-O {[%emt 0:00:32]} O-O {[%emt 0:00:14]} 6. d3 {[%emt 0:00:15]} d6 {[%emt 0:00:44]} 7. Bg5 {[%emt 0:00:19]} Bxc3 {[%emt 0:01:19]} 8. bxc3 {[%emt 0:00:21]} Qe7 {[%emt 0:00:33]} 9. Re1 {[%emt 0:00:09]} Nd8 {[%emt 0:02:48]} 10. d4 {[%emt 0:00:14]} Ne6 {[%emt 0:06:59]} 11. Bd2 {[%emt 0:05:10] C49: Four Knights: 4 Bb5 Bb4} (11. Bc1 c5 {½-½ (11) Movsesian,S (2645)-Hracek,Z (2557) Biograd 2018}) 11... c6 {[%emt 0:01:15]} 12. Bd3 {[%emt 0:01:48]} Nc7 {[%emt 0:01:13]} 13. h3 {[%emt 0:02:38]} h6 {[%emt 0:00:44]} 14. Qc1 $146 {[%emt 0:01:30]} ({Predecessor:} 14. Kh2 b6 15. a4 c5 16. d5 Bd7 {½-½ (30) Shih,L (1517)-Pang,B (1259) Hong Kong 2017}) 14... Nh7 {[%emt 0:05:31]} 15. Qb2 {[%emt 0:06:07]} Qf6 {[%emt 0:01:31]} 16. dxe5 {[%emt 0:02:15]} dxe5 {[%emt 0:05:46]} 17. c4 {[%emt 0:00:08]} Bxh3 {[%emt 0:01:13]} 18. Re3 {[%emt 0:12:50]} ({Reject} 18. gxh3 $6 Qxf3 19. Qxe5 Ne6 $11) 18... Bc8 {[%emt 0:03:57]} 19. Nxe5 {[%emt 0:06:32]} Re8 {[%emt 0:01:00]} 20. Bc3 {[%emt 0:01:33]} Qd6 {[%emt 0:00:06]} 21. Nxf7 {[%emt 0:02:51]} Kxf7 {[%emt 0:08:11]} 22. e5 {[%emt 0:00:26]} Qe6 {[%emt 0:00:42]} 23. Bxh7 {[%emt 0:01:10]} Qxc4 {[%emt 0:00:35]} 24. Rf3+ {[%emt 0:00:40]} Ke7 {[%emt 0:00:05]} 25. Qa3+ {[%emt 0:02:07]} c5 {[%emt 0:00:05]} 26. Bd3 {[%emt 0:06:36]} Qd5 {[%emt 0:00:13]} 27. Qa4 {[%emt 0:00:18]} Be6 {[%emt 0:04:04]} 28. Rd1 {[%emt 0:01:17]} g5 {[%emt 0:01:11]} 29. Rf6 {[%emt 0:05:38]} Rh8 $18 {[%emt 0:08:43]} (29... Red8 30. Ba1 h5) 30. Be2 {[%emt 0:01:25]} Qc6 {[%emt 0:00:21]} 31. Qxc6 {[%emt 0:00:04]} bxc6 {[%emt 0:00:03]} 32. Rd6 {[%emt 0:00:02]} Bxa2 {[%emt 0:09:28]} 33. Rxc6 {[%emt 0:01:48]} Ne8 {[%emt 0:00:03]} 34. Rg6 {[%emt 0:00:37]} Bf7 {[%emt 0:05:04]} 35. Rxh6 {[%emt 0:00:09]} Rxh6 {[%emt 0:00:03]} 36. Rxh6 {[%emt 0:00:03]} a5 {[%emt 0:01:00]} 37. Bf3 {[%emt 0:02:23]} Ra7 {[%emt 0:00:28]} 38. Rh7 {[%emt 0:00:04]} a4 {[%emt 0:02:16]} 39. Bd5 {[%emt 0:00:26]} 1-0

[Event "Budapest Spring Festival 2019"]
[Site "Budapest"]
[Date "2019.04.17"]
[Round "9.36"]
[White "Lye, Lik Zang"]
[Black "Vegh, Endre"]
[Result "1-0"]
[ECO "A40"]
[WhiteElo "2377"]
[BlackElo "2240"]
[Annotator "NA RC"]
[PlyCount "75"]
[EventDate "2019.04.09"]
[EventType "swiss"]
[EventCountry "HUN"]
[SourceTitle "playchess.com"]
[Source "ChessBase"]
[SourceQuality "1"]
[TimeControl "40/5400+30:1800+30"]

1. d4 {[%emt 0:00:03]} e6 {[%emt 0:00:39]} 2. c4 {[%emt 0:00:28]} b6 {[%emt 0:00:23]} 3. Nf3 {[%emt 0:01:03]} Bb7 {[%emt 0:00:44]} 4. g3 {[%emt 0:00:11]} Bb4+ {[%emt 0:00:25]} 5. Bd2 {[%emt 0:00:25]} Bxf3 {[%emt 0:00:55]} 6. exf3 {[%emt 0:00:30]} Bxd2+ {[%emt 0:00:28]} 7. Qxd2 {[%emt 0:00:49]} d5 {[%emt 0:03:52]} 8. Nc3 {[%emt 0:02:45]} Ne7 {[%emt 0:03:28]} 9. cxd5 {[%emt 0:04:49]} Nxd5 {[%emt 0:04:59]} 10. Bd3 {[%emt 0:09:15] A40: Unusual replies to 1 d4} (10. Bg2 Nc6 11. f4 Nce7 12. O-O c6 13. Rac1 O-O 14. Nd1 Qd6 15. Ne3 Rac8 16. Rfd1 Rfd8 17. Qe2 g6 {½-½ (26) Checa,N (2508)-Lenderman,A (2632) Tysons 2018}) 10... c6 {[%emt 0:06:24]} 11. O-O {[%emt 0:04:27]} O-O {[%emt 0:00:58]} 12. Rac1 {[%emt 0:03:53]} Nf6 {[%emt 0:05:40]} 13. f4 $146 {[%emt 0:20:46]} ({Predecessor:} 13. Rfd1 Nbd7 14. Ba6 c5 15. Qe3 cxd4 16. Rxd4 Qe7 17. Be2 Rfd8 {½-½ (67) Pheby,I (2169)-Gaujens,A (2226) ICCF email 2009}) 13... g6 {[%emt 0:02:16]} 14. Be4 {[%emt 0:08:32]} Qd6 {[%emt 0:02:14]} 15. Bf3 {[%emt 0:01:56]} Nbd7 {[%emt 0:02:45]} 16. Rc2 {[%emt 0:04:44]} Rad8 {[%emt 0:03:59]} 17. Rd1 {[%emt 0:04:05]} Nb8 {[%emt 0:04:54]} 18. Qe2 {[%emt 0:05:09]} Rd7 {[%emt 0:05:20]} 19. Qe5 {[%emt 0:04:24]} Qe7 {[%emt 0:00:05]} 20. h4 {[%emt 0:06:28]} h5 {[%emt 0:01:54]} 21. Re2 {[%emt 0:04:14]} Rfd8 {[%emt 0:01:47]} 22. Qg5 {[%emt 0:03:40]} Kh7 {[%emt 0:01:32]} 23. f5 {[%emt 0:02:58]} gxf5 {[%emt 0:01:01]} 24. Rde1 {[%emt 0:00:33]} Rxd4 {[%emt 0:05:57]} 25. Qxf5+ {[%emt 0:00:13]} exf5 {[%emt 0:00:29]} 26. Rxe7 {[%emt 0:00:04]} R8d7 {[%emt 0:04:40]} 27. R7e5 {[%emt 0:01:43]} Kg6 {[%emt 0:07:20] [#]} (27... f4 $14) 28. Ne2 $1 {[%emt 0:01:29]} Rd2 {[%emt 0:00:22]} 29. Nf4+ {[%emt 0:00:31]} Kg7 {[%emt 0:00:36]} 30. Rxf5 {[%emt 0:00:54]} ({Much worse is} 30. Nxh5+ $6 Nxh5 31. Bxh5 Kf6 $11) ({Don't play} 30. Bxh5 $6 Rxb2 {Don't play} 31. Rxf5 $6 Na6 $11) 30... Rxb2 {[%emt 0:00:50] [#]} 31. Rg5+ {[%emt 0:01:37]} ({White should try} 31. Rxf6 $1 $16 {[%mdl 512]} Kxf6 32. Nxh5+ Kg6 33. Re8) 31... Kh6 {[%emt 0:06:43]} 32. Nxh5 {[%emt 0:00:23]} Nxh5 {[%emt 0:05:19]} 33. Re8 {[%emt 0:01:33]} ({Less strong is} 33. Bxh5 Rb5 $16) 33... Nf6 {[%emt 0:02:42]} 34. Rh8+ {[%emt 0:01:04]} Nh7 {[%emt 0:00:06]} 35. Be4 {[%emt 0:00:52]} f6 {[%emt 0:01:45]} 36. Rg6+ {[%emt 0:00:31]} Kh5 {[%emt 0:00:05]} 37. Rhg8 {[%emt 0:00:34]} Ng5 {[%emt 0:07:29]} 38. hxg5 {[%emt 0:00:09]} 1-0

[Event "Budapest Spring Festival 2019"]
[Site "Budapest"]
[Date "2019.04.17"]
[Round "9.39"]
[White "Mehar, Chinna Reddy C.H."]
[Black "Gombocz, Ferenc Jr."]
[Result "1-0"]
[ECO "D00"]
[WhiteElo "2348"]
[BlackElo "2183"]
[Annotator "NA"]
[PlyCount "147"]
[EventDate "2019.04.09"]
[EventType "swiss"]
[EventCountry "HUN"]
[SourceTitle "playchess.com"]
[Source "ChessBase"]
[SourceQuality "1"]
[TimeControl "40/5400+30:1800+30"]

1. d4 {[%emt 0:03:09]} d5 {[%emt 0:00:05]} 2. Bf4 {[%emt 0:00:15]} Nf6 {[%emt 0:00:23]} 3. e3 {[%emt 0:00:05]} c5 {[%emt 0:00:13]} 4. c3 {[%emt 0:00:06]} Nc6 {[%emt 0:00:05]} 5. Nd2 {[%emt 0:00:06]} Bf5 {[%emt 0:01:06]} (5... Qb6 6. Qb3 Nh5 7. Qxb6 axb6 8. Bc7 cxd4 9. exd4 e5 10. Bxe5 Nxe5 11. dxe5 Bc5 12. g3 O-O {1-0 (76) Aronian,L (2765)-Caruana,F (2832) London 2018}) 6. Qb3 {[%emt 0:00:07] D00: 1 d4 d5: Unusual lines} Qd7 {[%emt 0:01:36]} 7. Ngf3 {[%emt 0:00:06]} c4 {[%emt 0:00:27]} 8. Qd1 {[%emt 0:00:06]} e6 {[%emt 0:05:50]} 9. Be2 {[%emt 0:00:09]} Bd6 {[%emt 0:01:05]} 10. b3 $146 {[%emt 0:11:15]} ({Predecessor:} 10. Bxd6 Qxd6 11. b3 b5 12. O-O O-O {½-½ (12) Kosic,D (2465)-Saric,A (2535) Biograd na Moru 2018}) 10... Bxf4 {[%emt 0:02:22]} 11. exf4 {[%emt 0:00:08]} b5 {[%emt 0:00:24]} 12. a4 {[%emt 0:29:44]} b4 {[%emt 0:04:23]} 13. Ne5 {[%emt 0:00:21]} Nxe5 {[%emt 0:07:41]} (13... Qb7 $15 14. Qc1 bxc3 15. Qxc3 Qb4) 14. fxe5 {[%emt 0:00:05]} bxc3 {[%emt 0:01:30]} 15. exf6 {[%emt 0:00:34]} cxd2+ {[%emt 0:00:08]} 16. Qxd2 {[%emt 0:00:03]} gxf6 {[%emt 0:01:17]} 17. bxc4 {[%emt 0:03:15]} dxc4 {[%emt 0:00:57]} 18. Bxc4 {[%emt 0:01:58]} Ke7 {[%emt 0:02:55]} 19. O-O {[%emt 0:00:34]} Rhd8 {[%emt 0:04:54]} 20. Rfd1 {[%emt 0:00:48]} (20. d5 $5) 20... Rac8 {[%emt 0:01:42]} 21. Bb5 {[%emt 0:01:24]} Qd6 {[%emt 0:00:09]} 22. Rac1 {[%emt 0:01:11]} Qxd4 {[%emt 0:15:39]} 23. Rxc8 {[%emt 0:00:18]} Qxd2 {[%emt 0:00:07]} 24. Rxd2 {[%emt 0:00:08]} Rxc8 {[%emt 0:00:07]} 25. Rd7+ {[%emt 0:00:03]} Kf8 {[%emt 0:00:09]} 26. f3 {[%emt 0:01:59]} Ra8 {[%emt 0:02:49]} 27. Rc7 {[%emt 0:03:30]} a6 {[%emt 0:12:36]} 28. Be2 {[%emt 0:02:52]} Ke8 {[%emt 0:15:58]} 29. a5 {[%emt 0:02:17]} e5 {[%emt 0:03:15]} 30. Bc4 {[%emt 0:02:47]} Rc8 {[%emt 0:01:04]} 31. Bxf7+ {[%emt 0:00:52]} Kf8 {[%emt 0:00:04]} 32. Ra7 {[%emt 0:01:25]} Rc5 {[%emt 0:02:27]} 33. Bb3 {[%emt 0:01:03]} Rxa5 {[%emt 0:00:34]} 34. Rf7+ {[%emt 0:00:14]} Ke8 {[%emt 0:00:04]} 35. Rxf6 {[%emt 0:00:04]} Bd7 {[%emt 0:00:45]} 36. Bc4 {[%emt 0:05:15]} (36. h4 $16) 36... Ra1+ {[%emt 0:00:36]} 37. Kf2 {[%emt 0:00:07]} a5 {[%emt 0:00:03]} 38. Rh6 {[%emt 0:02:27]} Rc1 {[%emt 0:02:53]} 39. Be6 {[%emt 0:03:03]} Bb5 {[%emt 0:01:38]} 40. Rh5 {[%emt 0:00:00]} Rc2+ {[%emt 0:00:00]} 41. Kg3 {[%emt 0:04:06]} Bf1 {[%emt 0:01:58]} 42. Rxe5 {[%emt 0:00:05]} Rxg2+ {[%emt 0:00:19]} 43. Kf4 {[%emt 0:00:07]} Kf8 {[%emt 0:00:29]} 44. Bh3 {[%emt 0:01:39]} Rf2 {[%emt 0:00:04]} 45. Kg3 {[%emt 0:00:42]} Rxf3+ {[%emt 0:00:49]} 46. Kxf3 {[%emt 0:00:06]} Bxh3 {[%emt 0:00:05]} 47. Rxa5 {[%emt 0:04:04]} Kg7 {[%emt 0:01:44]} 48. Kf4 {[%emt 0:00:10]} Bf1 {[%emt 0:03:01]} 49. Rg5+ {[%emt 0:02:32]} Kf6 {[%emt 0:01:45]} 50. Rd5 {[%emt 0:00:21]} Kg6 {[%emt 0:01:15]} 51. Rd6+ {[%emt 0:01:26]} Kh5 {[%emt 0:01:42]} 52. Kg3 {[%emt 0:00:27]} Bc4 {[%emt 0:01:39]} 53. Rc6 {[%emt 0:00:26]} Bd3 {[%emt 0:09:24]} 54. Rc3 {[%emt 0:00:59]} Be2 {[%emt 0:00:31]} 55. Rc5+ {[%emt 0:03:21]} Kg6 {[%emt 0:00:45]} 56. Kh4 {[%emt 0:00:03]} Bd3 $18 {[%emt 0:01:28]} 57. Rc6+ {[%emt 0:00:21]} Kf7 {[%emt 0:00:18]} 58. Kg5 {[%emt 0:00:14]} Be4 {[%emt 0:00:43]} 59. Rf6+ {[%emt 0:01:19]} Ke7 {[%emt 0:00:39]} 60. Rf4 {[%emt 0:00:32]} Bd3 {[%emt 0:00:07]} 61. Rf3 {[%emt 0:01:30]} Bc2 {[%emt 0:00:34]} 62. h4 {[%emt 0:00:13]} Bb1 {[%emt 0:00:08]} 63. Kh6 {[%emt 0:01:38]} Bc2 {[%emt 0:02:16]} 64. Kg7 {[%emt 0:01:25]} Bb1 {[%emt 0:01:24]} 65. Rf1 {[%emt 0:00:23]} Bc2 {[%emt 0:00:31]} 66. h5 {[%emt 0:00:29]} Ke6 {[%emt 0:00:56]} 67. Rc1 {[%emt 0:01:36]} Bf5 {[%emt 0:01:01]} 68. Re1+ {[%emt 0:00:16]} Kd7 {[%emt 0:00:43]} 69. Kf6 {[%emt 0:00:12]} Bc2 {[%emt 0:01:31]} 70. Rc1 {[%emt 0:00:05]} Be4 {[%emt 0:02:42]} 71. Rd1+ {[%emt 0:00:11]} Kc6 {[%emt 0:03:02]} 72. Ke5 {[%emt 0:01:37]} Bf3 {[%emt 0:01:00]} 73. Rd6+ {[%emt 0:00:16]} Kc7 {[%emt 0:00:22]} 74. Rh6 {[%emt 0:00:15]} 1-0